fUST/lending_fUST_20250702
["ID","MTS","AMOUNT","RATE_DAILY","PERIOD"]
[369075863,1751458243772,-215.04179405,0.00019173,2]
[369075864,1751458243782,-230.34465076,0.00019173,2]
[369075865,1751458243791,-160.0,0.00019173,2]
[369075866,1751458243800,-12573.65100011,0.00019173,2]
[369075867,1751458243809,-837.27862799,0.00019173,2]
[369075868,1751458243819,-160.0,0.00019173,2]
[369075869,1751458243828,-847.65867985,0.00019173,2]
[369075870,1751458243838,-213.90888375,0.00019173,2]
[369075871,1751458243847,-160.0,0.00019174,2]
[369075872,1751458243857,-460.0,0.00019178,2]
[369075873,1751458243866,-460.0,0.00019178,2]
[369075874,1751458243875,-460.0,0.00019178,2]
[369075875,1751458243885,-460.0,0.00019178,2]
[369075876,1751458243894,-460.0,0.00019178,2]
[369075877,1751458243903,-500.0,0.00019178,2]
[369075878,1751458243912,-460.0,0.00019178,2]
[369075879,1751458243921,-460.0,0.00019178,2]
[369075880,1751458243931,-460.0,0.00019178,2]
[369075881,1751458243941,-464.68187714,0.00019178,2]
[369075882,1751458243949,-460.0,0.00019178,2]
[369075883,1751458243959,-460.0,0.00019178,2]
[369075884,1751458243968,-460.0,0.00019178,2]
[369075885,1751458243977,-464.69688103,0.00019178,2]
[369075886,1751458243987,-460.0,0.00019178,2]
[369075887,1751458243997,-460.0,0.00019178,2]
[369075888,1751458244006,-460.0,0.00019178,2]
[369075889,1751458244016,-460.0,0.00019178,2]
[369075890,1751458244026,-460.0,0.00019178,2]
[369075891,1751458244035,-460.0,0.00019178,2]
[369075892,1751458244044,-460.0,0.00019178,2]
[369075893,1751458244054,-460.0,0.00019178,2]
[369075894,1751458244064,-460.0,0.00019178,2]
[369075895,1751458244073,-460.0,0.00019178,2]
[369075896,1751458244083,-460.0,0.00019178,2]
[369075897,1751458244092,-460.0,0.00019178,2]
[369075898,1751458244102,-460.0,0.00019178,2]
[369075899,1751458244111,-465.49882219,0.00019178,2]
[369075900,1751458244120,-284.21168594,0.00019178,2]
[369075901,1751458244130,-460.0,0.00019178,2]
[369075902,1751458244139,-460.0,0.00019178,2]
[369075903,1751458244149,-460.0,0.00019178,2]
[369075904,1751458244158,-460.0,0.00019178,2]
[369075905,1751458244168,-460.0,0.00019178,2]
[369075906,1751458244178,-460.0,0.00019178,2]
[369075907,1751458244187,-481.52,0.00019178,2]
[369075908,1751458244198,-430.2538208,0.00019178,2]
[369075909,1751458244208,-460.0,0.00019178,2]
[369075910,1751458244217,-460.0,0.00019178,2]
[369075911,1751458244379,-460.0,0.00019178,2]
[369075912,1751458244388,-569.75727637,0.00019178,2]
[369075913,1751458244398,-2354.07,0.00019178,2]
[369075914,1751458244408,-460.0,0.00019178,2]
[369075915,1751458244417,-489.90245312,0.00019178,2]
[369075916,1751458244427,-460.0,0.00019178,2]
[369075917,1751458244436,-460.0,0.00019178,2]
[369075918,1751458244445,-593.64795834,0.00019178,2]
[369075919,1751458244455,-460.0,0.00019178,2]
[369075920,1751458244464,-460.0,0.00019178,2]
[369075921,1751458244474,-460.0,0.00019178,2]
[369075922,1751458244483,-460.0,0.00019178,2]
[369075923,1751458244492,-460.0,0.00019178,2]
[369075924,1751458244502,-460.0,0.00019178,2]
[369075925,1751458244511,-460.0,0.00019178,2]
[369075926,1751458244521,-460.0,0.00019178,2]
[369075927,1751458244530,-460.0,0.00019178,2]
[369075928,1751458244540,-460.0,0.00019178,2]
[369075929,1751458244549,-460.0,0.00019178,2]
[369075930,1751458244559,-460.0,0.00019178,2]
[369075931,1751458244568,-460.0,0.00019178,2]
[369075932,1751458244577,-500.0,0.00019178,2]
[369075933,1751458244587,-460.0,0.00019178,2]
[369075934,1751458244596,-517.36,0.00019178,2]
[369075935,1751458244605,-500.0,0.00019178,2]
[369075936,1751458244615,-166.38,0.00019178,2]
[369075937,1751458244624,-460.0,0.00019178,2]
[369075938,1751458244634,-460.0,0.00019178,2]
[369075939,1751458244646,-460.0,0.00019178,2]
[369075940,1751458244655,-460.0,0.00019178,2]
[369075941,1751458244664,-460.0,0.00019178,2]
[369075942,1751458244674,-460.0,0.00019178,2]
[369075943,1751458244684,-460.0,0.00019178,2]
[369075944,1751458244694,-460.0,0.00019178,2]
[369075945,1751458244704,-460.0,0.00019178,2]
[369075946,1751458244714,-460.0,0.00019178,2]
[369075947,1751458244723,-460.0,0.00019178,2]
[369075948,1751458244733,-460.0,0.00019178,2]
[369075949,1751458244742,-462.26133505,0.00019178,2]
[369075950,1751458244752,-460.0,0.00019178,2]
[369075951,1751458244762,-460.0,0.00019178,2]
[369075952,1751458244772,-460.0,0.00019178,2]
[369075953,1751458244781,-460.0,0.00019178,2]
[369075954,1751458244791,-460.0,0.00019178,2]
[369075955,1751458244800,-229.75509226,0.00019178,2]
[369075956,1751458244809,-460.0,0.00019178,2]
[369075957,1751458244818,-460.0,0.00019178,2]
[369075958,1751458244827,-460.0,0.00019178,2]
[369075959,1751458244837,-460.0,0.00019178,2]
[369075960,1751458244846,-460.0,0.00019178,2]
[369075961,1751458244855,-466.00231493,0.00019178,2]
[369075962,1751458244865,-500.0,0.00019178,2]
[369075963,1751458244875,-500.0,0.00019178,2]
[369075964,1751458244884,-500.0,0.00019178,2]
[369075965,1751458244893,-516.9775803,0.00019178,2]
[369075966,1751458244902,-460.0,0.00019178,2]
[369075967,1751458244911,-460.0,0.00019178,2]
[369075968,1751458244921,-1060.04,0.00019178,2]
[369075969,1751458244931,-460.0,0.00019178,2]
[369075970,1751458244940,-460.0,0.00019178,2]
[369075971,1751458244950,-460.0,0.00019178,2]
[369075972,1751458244959,-460.0,0.00019178,2]
[369075973,1751458244968,-460.0,0.00019178,2]
[369075974,1751458244978,-460.0,0.00019178,2]
[369075975,1751458244988,-460.0,0.00019178,2]
[369075976,1751458244998,-460.0,0.00019178,2]
[369075977,1751458245008,-460.0,0.00019178,2]
[369075978,1751458245019,-460.0,0.00019178,2]
[369075979,1751458245030,-460.0,0.00019178,2]
[369075980,1751458245039,-460.0,0.00019178,2]
[369075981,1751458245049,-474.73564748,0.00019178,2]
[369075982,1751458245059,-460.0,0.00019178,2]
[369075983,1751458245069,-397.55980209,0.00019178,2]
[369075984,1751458245078,-460.0,0.00019178,2]
[369075985,1751458245088,-460.0,0.00019178,2]
[369075986,1751458245098,-460.0,0.00019178,2]
[369075987,1751458245108,-460.0,0.00019178,2]
[369075988,1751458245118,-460.0,0.00019178,2]
[369075989,1751458245127,-460.0,0.00019178,2]
[369075990,1751458245137,-460.0,0.00019178,2]
[369075991,1751458245146,-460.0,0.00019178,2]
[369075992,1751458245156,-1469.86,0.00019178,2]
[369075993,1751458245166,-460.0,0.00019178,2]
[369075994,1751458245175,-460.0,0.00019178,2]
[369075995,1751458245185,-460.0,0.00019178,2]
[369075996,1751458245194,-460.0,0.00019178,2]
[369075997,1751458245204,-460.0,0.00019178,2]
[369075998,1751458245213,-526.65,0.00019178,2]
[369075999,1751458245225,-460.0,0.00019178,2]
[369076000,1751458245236,-460.0,0.00019178,2]
[369076001,1751458245245,-460.0,0.00019178,2]
[369076002,1751458245254,-460.0,0.00019178,2]
[369076003,1751458245265,-460.0,0.00019178,2]
[369076004,1751458245275,-2125.92,0.00019178,2]
[369076005,1751458245284,-490.84,0.00019178,2]
[369076006,1751458245294,-508.73,0.00019178,2]
[369076007,1751458245305,-460.0,0.00019178,2]
[369076008,1751458245315,-425.10841771,0.00019178,2]
[369076009,1751458245324,-460.0,0.00019178,2]
[369076010,1751458245334,-490.33,0.00019178,2]
[369076011,1751458245344,-460.0,0.00019178,2]
[369076012,1751458245354,-460.0,0.00019178,2]
[369076013,1751458245364,-460.0,0.00019178,2]
[369076014,1751458245374,-760.85,0.00019178,2]
[369076015,1751458245383,-460.0,0.00019178,2]
[369076016,1751458245393,-487.23,0.00019178,2]
[369076017,1751458245402,-460.0,0.00019178,2]
[369076018,1751458245411,-460.0,0.00019178,2]
[369076019,1751458245421,-460.0,0.00019178,2]
[369076020,1751458245430,-460.0,0.00019178,2]
[369076021,1751458245439,-460.0,0.00019178,2]
[369076022,1751458245450,-460.0,0.00019178,2]
[369076023,1751458245459,-1402.12,0.00019178,2]
[369076024,1751458245469,-460.0,0.00019178,2]
[369076025,1751458245478,-460.0,0.00019178,2]
[369076026,1751458245488,-460.0,0.00019178,2]
[369076027,1751458245498,-200.0,0.00019178,2]
[369076028,1751458245508,-460.0,0.00019178,2]
[369076030,1751458245519,-460.0,0.00019178,2]
[369076031,1751458245528,-460.0,0.00019178,2]
[369076032,1751458245537,-3328.85,0.00019178,2]
[369076033,1751458245546,-460.0,0.00019178,2]
[369076034,1751458245556,-460.0,0.00019178,2]
[369076035,1751458245565,-606.7464427,0.00019178,2]
[369076036,1751458245575,-1997.93,0.00019178,2]
[369076037,1751458245584,-460.0,0.00019178,2]
[369076038,1751458245593,-460.0,0.00019178,2]
[369076039,1751458245603,-460.0,0.00019178,2]
[369076040,1751458245612,-460.0,0.00019178,2]
[369076041,1751458245622,-460.0,0.00019178,2]
[369076042,1751458245631,-460.0,0.00019178,2]
[369076043,1751458245641,-950.84,0.00019178,2]
[369076044,1751458245650,-460.0,0.00019178,2]
[369076045,1751458245660,-460.0,0.00019178,2]
[369076046,1751458245670,-628.67,0.00019178,2]
[369076047,1751458245680,-460.0,0.00019178,2]
[369076048,1751458245689,-1813.71,0.00019178,2]
[369076049,1751458245698,-460.0,0.00019178,2]
[369076050,1751458245708,-460.0,0.00019178,2]
[369076051,1751458245717,-460.0,0.00019178,2]
[369076052,1751458245726,-460.0,0.00019178,2]
[369076053,1751458245736,-460.0,0.00019178,2]
[369076054,1751458245745,-460.0,0.00019178,2]
[369076055,1751458245755,-460.0,0.00019178,2]
[369076056,1751458245764,-460.0,0.00019178,2]
[369076057,1751458245774,-460.0,0.00019178,2]
[369076058,1751458245783,-460.0,0.00019178,2]
[369076059,1751458245793,-1930.04,0.00019178,2]
[369076060,1751458245804,-460.0,0.00019178,2]
[369076061,1751458245813,-500.00000001,0.00019178,2]
[369076062,1751458245822,-460.0,0.00019178,2]
[369076063,1751458245832,-460.0,0.00019178,2]
[369076064,1751458245841,-460.0,0.00019178,2]
[369076065,1751458245850,-460.0,0.00019178,2]
[369076066,1751458245860,-460.0,0.00019178,2]
[369076067,1751458245870,-2987.27,0.00019178,2]
[369076068,1751458245880,-543.39,0.00019178,2]
[369076069,1751458245890,-1280.28,0.00019178,2]
[369076070,1751458245899,-460.0,0.00019178,2]
[369076071,1751458245908,-475.63543935,0.00019178,2]
[369076072,1751458245918,-630.1,0.00019178,2]
[369076073,1751458245928,-460.0,0.00019178,2]
[369076074,1751458245938,-1228.08,0.00019178,2]
[369076075,1751458245947,-460.0,0.00019178,2]
[369076076,1751458245957,-767.72,0.00019178,2]
[369076077,1751458245967,-460.0,0.00019178,2]
[369076078,1751458245976,-460.0,0.00019178,2]
[369076079,1751458245985,-460.0,0.00019178,2]
[369076080,1751458245994,-3234.28,0.00019178,2]
[369076081,1751458246003,-605.46,0.00019178,2]
[369076082,1751458246012,-460.0,0.00019178,2]
[369076083,1751458246022,-460.0,0.00019178,2]
[369076084,1751458246032,-460.0,0.00019178,2]
[369076085,1751458246043,-510.38540525,0.00019178,2]
[369076086,1751458246052,-460.0,0.00019178,2]
[369076087,1751458246062,-460.0,0.00019178,2]
[369076088,1751458246072,-460.0,0.00019178,2]
[369076089,1751458246081,-420.2807049,0.00019178,2]
[369076090,1751458246091,-460.0,0.00019178,2]
[369076091,1751458246100,-460.0,0.00019178,2]
[369076092,1751458246110,-460.0,0.00019178,2]
[369076093,1751458246120,-549.86,0.00019178,2]
[369076094,1751458246129,-1638.84,0.00019178,2]
[369076095,1751458246139,-460.0,0.00019178,2]
[369076096,1751458246148,-460.0,0.00019178,2]
[369076097,1751458246158,-460.0,0.00019178,2]
[369076098,1751458246167,-460.0,0.00019178,2]
[369076099,1751458246177,-460.0,0.00019178,2]
[369076100,1751458246187,-460.0,0.00019178,2]
[369076101,1751458246196,-460.0,0.00019178,2]
[369076102,1751458246205,-460.0,0.00019178,2]
[369076103,1751458246214,-296.03316363,0.00019178,2]
[369076104,1751458246224,-1034.27,0.00019178,2]
[369076105,1751458246236,-963.51,0.00019178,2]
[369076106,1751458246246,-460.0,0.00019178,2]
[369076107,1751458246254,-698.21,0.00019178,2]
[369076108,1751458246264,-500.0,0.00019178,2]
[369076109,1751458246275,-272.777327,0.00019178,2]
[369076110,1751458246284,-259.227,0.0001919,2]
[369076111,1751458246293,-216.484,0.0001919,2]
[369076112,1751458246303,-966.0,0.0001919,2]
[369076113,1751458246313,-646.0,0.0001919,2]
[369076114,1751458246324,-2151.0,0.0001919,2]
[369076115,1751458246333,-302.57643837,0.0001919,2]
[369076116,1751458246342,-302.0,0.0001922,2]
[369076117,1751458246352,-302.0,0.00019234,2]
[369076118,1751458246362,-302.0,0.00019258,2]
[369076119,1751458246371,-302.0,0.00019286,2]
[369076120,1751458246381,-302.0,0.00019306,2]
[369076121,1751458246390,-302.0,0.00019309,2]
[369076122,1751458246399,-60813.55808681,0.00019329,2]
[369076123,1751458246408,-224.5,0.0001935,3]
[369076124,1751458246417,-2497.63717588,0.00019352,2]
[369076125,1751458246426,-302.0,0.00019352,2]
[369076126,1751458246435,-302.0,0.00019357,2]
[369076127,1751458246444,-406.0,0.00019364,2]
[369076128,1751458246452,-302.57643837,0.0001938,2]
[369076129,1751458246462,-302.0,0.00019422,2]
[369076130,1751458246470,-302.0,0.00019426,2]
[369076131,1751458246479,-500.0,0.00019451,2]
[369076132,1751458246489,-460.0,0.00019452,2]
[369076133,1751458246498,-151.0,0.00019452,2]
[369076134,1751458246508,-460.0,0.00019452,2]
[369076135,1751458246517,-460.0,0.00019452,2]
[369076136,1751458246525,-460.0,0.00019452,2]
[369076137,1751458246534,-460.0,0.00019452,2]
[369076138,1751458246544,-460.0,0.00019452,2]
[369076139,1751458246553,-460.0,0.00019452,2]
[369076140,1751458246562,-460.0,0.00019452,2]
[369076141,1751458246571,-460.0,0.00019452,2]
[369076142,1751458246580,-460.0,0.00019452,2]
[369076143,1751458246589,-460.0,0.00019452,2]
[369076144,1751458246598,-460.0,0.00019452,2]
[369076145,1751458246607,-460.0,0.00019452,2]
[369076146,1751458246615,-460.0,0.00019452,2]
[369076147,1751458246624,-460.0,0.00019452,2]
[369076148,1751458246633,-460.0,0.00019452,2]
[369076149,1751458246642,-481.52,0.00019452,2]
[369076150,1751458246651,-460.0,0.00019452,2]
[369076151,1751458246660,-430.0,0.00019452,2]
[369076152,1751458246669,-460.0,0.00019452,2]
[369076153,1751458246678,-2354.07,0.00019452,2]
[369076154,1751458246687,-460.0,0.00019452,2]
[369076155,1751458246696,-460.0,0.00019452,2]
[369076156,1751458246705,-599.98403437,0.00019452,2]
[369076157,1751458246715,-460.0,0.00019452,2]
[369076158,1751458246724,-460.0,0.00019452,2]
[369076159,1751458246733,-460.0,0.00019452,2]
[369076160,1751458246743,-460.0,0.00019452,2]
[369076161,1751458246752,-460.0,0.00019452,2]
[369076162,1751458246761,-460.0,0.00019452,2]
[369076163,1751458246770,-460.0,0.00019452,2]
[369076164,1751458246779,-460.0,0.00019452,2]
[369076165,1751458246788,-460.0,0.00019452,2]
[369076166,1751458246797,-524.18265194,0.00019452,2]
[369076167,1751458246806,-460.0,0.00019452,2]
[369076168,1751458246815,-500.0,0.00019452,2]
[369076169,1751458246824,-460.0,0.00019452,2]
[369076170,1751458246833,-517.36,0.00019452,2]
[369076171,1751458246843,-460.0,0.00019452,2]
[369076172,1751458246851,-460.0,0.00019452,2]
[369076173,1751458246860,-460.0,0.00019452,2]
[369076174,1751458246870,-460.0,0.00019452,2]
[369076175,1751458246879,-460.0,0.00019452,2]
[369076176,1751458246888,-460.0,0.00019452,2]
[369076177,1751458246897,-460.0,0.00019452,2]
[369076178,1751458246907,-460.0,0.00019452,2]
[369076179,1751458246916,-460.0,0.00019452,2]
[369076180,1751458246925,-460.0,0.00019452,2]
[369076181,1751458246935,-460.0,0.00019452,2]
[369076182,1751458246945,-475.27157631,0.00019452,2]
[369076183,1751458246954,-460.0,0.00019452,2]
[369076184,1751458246963,-460.0,0.00019452,2]
[369076185,1751458246972,-460.0,0.00019452,2]
[369076186,1751458246981,-519.90217004,0.00019452,2]
[369076187,1751458246990,-460.0,0.00019452,2]
[369076188,1751458246999,-460.0,0.00019452,2]
[369076189,1751458247009,-460.0,0.00019452,2]
[369076190,1751458247018,-494.87265486,0.00019452,2]
[369076191,1751458247027,-1060.04,0.00019452,2]
[369076192,1751458247036,-460.0,0.00019452,2]
[369076193,1751458247046,-460.0,0.00019452,2]
[369076194,1751458247055,-460.0,0.00019452,2]
[369076195,1751458247064,-460.0,0.00019452,2]
[369076196,1751458247074,-460.0,0.00019452,2]
[369076197,1751458247083,-460.0,0.00019452,2]
[369076198,1751458247092,-460.0,0.00019452,2]
[369076199,1751458247101,-151.0,0.00019452,2]
[369076200,1751458247110,-154.5618904,0.00019452,2]
[369076201,1751458247119,-460.0,0.00019452,2]
[369076202,1751458247128,-460.0,0.00019452,2]
[369076203,1751458247136,-460.0,0.00019452,2]
[369076204,1751458247146,-460.0,0.00019452,2]
[369076205,1751458247155,-460.0,0.00019452,2]
[369076206,1751458247165,-460.0,0.00019452,2]
[369076207,1751458247174,-460.0,0.00019452,2]
[369076208,1751458247183,-460.0,0.00019452,2]
[369076209,1751458247193,-460.0,0.00019452,2]
[369076210,1751458247202,-460.0,0.00019452,2]
[369076211,1751458247211,-460.0,0.00019452,2]
[369076212,1751458247221,-460.0,0.00019452,2]
[369076213,1751458247233,-1469.86,0.00019452,2]
[369076214,1751458247243,-460.0,0.00019452,2]
[369076215,1751458247253,-460.0,0.00019452,2]
[369076216,1751458247263,-460.0,0.00019452,2]
[369076217,1751458247273,-230.16909466,0.00019452,2]
[369076218,1751458247283,-460.0,0.00019452,2]
[369076219,1751458247293,-526.65,0.00019452,2]
[369076220,1751458247303,-460.0,0.00019452,2]
[369076221,1751458247312,-460.0,0.00019452,2]
[369076222,1751458247321,-466.2019,0.00019452,2]
[369076223,1751458247330,-460.0,0.00019452,2]
[369076224,1751458247340,-2125.92,0.00019452,2]
[369076225,1751458247350,-490.84,0.00019452,2]
[369076226,1751458247360,-460.0,0.00019452,2]
[369076227,1751458247369,-508.73,0.00019452,2]
[369076228,1751458247378,-460.0,0.00019452,2]
[369076229,1751458247387,-490.33,0.00019452,2]
[369076230,1751458247397,-460.0,0.00019452,2]
[369076231,1751458247407,-460.0,0.00019452,2]
[369076232,1751458247416,-760.85,0.00019452,2]
[369076233,1751458247425,-460.0,0.00019452,2]
[369076234,1751458247434,-487.23,0.00019452,2]
[369076235,1751458247444,-460.0,0.00019452,2]
[369076236,1751458247454,-460.0,0.00019452,2]
[369076237,1751458247464,-460.0,0.00019452,2]
[369076238,1751458247473,-460.0,0.00019452,2]
[369076239,1751458247483,-193.90173622,0.00019452,2]
[369076240,1751458247492,-460.0,0.00019452,2]
[369076241,1751458247502,-1402.12,0.00019452,2]
[369076242,1751458247511,-460.0,0.00019452,2]
[369076243,1751458247521,-324.14623544,0.00019452,2]
[369076244,1751458247530,-460.0,0.00019452,2]
[369076245,1751458247539,-3328.85,0.00019452,2]
[369076246,1751458247548,-460.0,0.00019452,2]
[369076247,1751458247557,-460.0,0.00019452,2]
[369076248,1751458247567,-1997.93,0.00019452,2]
[369076249,1751458247576,-460.0,0.00019452,2]
[369076250,1751458247585,-460.0,0.00019452,2]
[369076251,1751458247594,-460.0,0.00019452,2]
[369076252,1751458247603,-460.0,0.00019452,2]
[369076253,1751458247613,-460.0,0.00019452,2]
[369076254,1751458247623,-460.0,0.00019452,2]
[369076255,1751458247632,-950.84,0.00019452,2]
[369076256,1751458247641,-460.0,0.00019452,2]
[369076257,1751458247650,-460.0,0.00019452,2]
[369076258,1751458247659,-628.67,0.00019452,2]
[369076259,1751458247669,-460.0,0.00019452,2]
[369076260,1751458247678,-1813.71,0.00019452,2]
[369076261,1751458247687,-460.0,0.00019452,2]
[369076262,1751458247696,-460.0,0.00019452,2]
[369076263,1751458247705,-460.0,0.00019452,2]
[369076264,1751458247714,-341.46703057,0.00019452,2]
[369076265,1751458247723,-460.0,0.00019452,2]
[369076266,1751458247733,-193.08403378,0.00019452,2]
[369076267,1751458247742,-460.0,0.00019452,2]
[369076268,1751458247752,-460.0,0.00019452,2]
[369076269,1751458247762,-1930.04,0.00019452,2]
[369076270,1751458247772,-460.0,0.00019452,2]
[369076271,1751458247782,-460.0,0.00019452,2]
[369076272,1751458247791,-460.0,0.00019452,2]
[369076273,1751458247800,-460.0,0.00019452,2]
[369076274,1751458247810,-460.0,0.00019452,2]
[369076275,1751458247819,-2987.27,0.00019452,2]
[369076276,1751458247960,-543.39,0.00019452,2]
[369076277,1751458247970,-1280.28,0.00019452,2]
[369076278,1751458247979,-460.0,0.00019452,2]
[369076279,1751458247988,-630.1,0.00019452,2]
[369076280,1751458247998,-460.0,0.00019452,2]
[369076281,1751458248007,-1228.08,0.00019452,2]
[369076282,1751458248016,-460.0,0.00019452,2]
[369076283,1751458248025,-767.72,0.00019452,2]
[369076284,1751458248034,-460.0,0.00019452,2]
[369076285,1751458248044,-460.0,0.00019452,2]
[369076286,1751458248053,-460.0,0.00019452,2]
[369076287,1751458248063,-3234.28,0.00019452,2]
[369076288,1751458248073,-605.46,0.00019452,2]
[369076289,1751458248082,-460.0,0.00019452,2]
[369076290,1751458248092,-557.7415749,0.00019452,2]
[369076291,1751458248101,-564.69341081,0.00019452,2]
[369076292,1751458248111,-460.0,0.00019452,2]
[369076293,1751458248120,-460.0,0.00019452,2]
[369076294,1751458248129,-460.0,0.00019452,2]
[369076295,1751458248139,-460.0,0.00019452,2]
[369076296,1751458248149,-460.0,0.00019452,2]
[369076297,1751458248159,-460.0,0.00019452,2]
[369076298,1751458248169,-549.86,0.00019452,2]
[369076299,1751458248178,-1638.84,0.00019452,2]
[369076300,1751458248187,-460.0,0.00019452,2]
[369076301,1751458248197,-460.0,0.00019452,2]
[369076302,1751458248206,-321.84247441,0.00019452,2]
[369076303,1751458248215,-460.0,0.00019452,2]
[369076304,1751458248227,-460.0,0.00019452,2]
[369076305,1751458248237,-460.0,0.00019452,2]
[369076306,1751458248247,-1034.27,0.00019452,2]
[369076307,1751458248257,-963.51,0.00019452,2]
[369076308,1751458248266,-460.0,0.00019452,2]
[369076309,1751458248277,-698.21,0.00019452,2]
[369076310,1751458248287,-430.0,0.00019479,2]
[369076311,1751458248296,-275.0,0.00019479,2]
[369076312,1751458248306,-153.0,0.00019495,2]
[369076313,1751458248317,-153.0,0.00019495,2]
[369076314,1751458248326,-153.0,0.00019495,2]
[369076315,1751458248335,-153.0,0.00019495,2]
[369076316,1751458248345,-558.95351712,0.000195,2]
[369076317,1751458248355,-430.0,0.00019507,2]
[369076318,1751458248365,-430.0,0.00019534,2]
[369076319,1751458248374,-430.0,0.00019562,2]
[369076320,1751458248383,-302.0,0.00019569,2]
[369076321,1751458248393,-302.57643837,0.0001957,2]
[369076322,1751458248403,-302.0,0.00019576,2]
[369076323,1751458248414,-430.0,0.00019589,2]
[369076324,1751458248425,-302.0,0.00019595,2]
[369076325,1751458248434,-430.0,0.00019616,2]
[369076326,1751458248444,-302.0,0.00019617,2]
[369076327,1751458248453,-302.0,0.00019631,2]
[369076328,1751458248463,-302.0,0.00019637,2]
[369076329,1751458248472,-430.0,0.00019644,2]
[369076330,1751458248482,-168.0,0.00019667,2]
[369076331,1751458248492,-430.0,0.00019671,2]
[369076332,1751458248502,-302.0,0.00019697,2]
[369076333,1751458248512,-430.0,0.00019699,2]
[369076334,1751458248522,-302.0,0.00019706,2]
[369076335,1751458248532,-246.80881703,0.00019721,2]
[369076336,1751458248541,-1000.0,0.00019721,2]
[369076337,1751458248550,-1000.0,0.00019721,2]
[369076338,1751458248559,-1000.0,0.00019721,2]
[369076339,1751458248569,-430.0,0.00019726,2]
[369076340,1751458248578,-460.0,0.00019726,2]
[369076341,1751458248587,-460.0,0.00019726,2]
[369076342,1751458248596,-427.68250477,0.00019726,2]
[369076343,1751458248605,-594.43852753,0.00019726,2]
[369076344,1751458248615,-460.0,0.00019726,2]
[369076345,1751458248624,-460.0,0.00019726,2]
[369076346,1751458248633,-460.0,0.00019726,2]
[369076347,1751458248643,-288.5984559,0.00019726,2]
[369076348,1751458248652,-460.0,0.00019726,2]
[369076349,1751458248661,-460.0,0.00019726,2]
[369076350,1751458248670,-460.0,0.00019726,2]
[369076351,1751458248680,-460.0,0.00019726,2]
[369076352,1751458248689,-586.21536758,0.00019726,2]
[369076353,1751458248698,-460.0,0.00019726,2]
[369076354,1751458248707,-460.0,0.00019726,2]
[369076355,1751458248717,-460.0,0.00019726,2]
[369076356,1751458248726,-481.52,0.00019726,2]
[369076357,1751458248736,-460.0,0.00019726,2]
[369076358,1751458248745,-555.65906925,0.00019726,2]
[369076359,1751458248755,-2354.07,0.00019726,2]
[369076360,1751458248764,-460.0,0.00019726,2]
[369076361,1751458248774,-461.07000061,0.00019726,2]
[369076362,1751458248783,-460.0,0.00019726,2]
[369076363,1751458248793,-378.18260366,0.00019726,2]